fUSD/lending_fUSD_20250420
["ID","MTS","AMOUNT","RATE_DAILY","PERIOD"]
[358445149,1745153439578,-1000.0,0.00047875,2]
[358445150,1745153439587,-153.66,0.00047881,2]
[358445151,1745153439595,-235.05,0.00047921,81]
[358445152,1745153439604,-150.0,0.00047921,7]
[358445153,1745153439613,-500.0,0.00047973,10]
[358445154,1745153439622,-504.28340826,0.00047973,7]
[358445155,1745153439631,-250.0,0.00048,120]
[358445156,1745153439640,-511.73303,0.00048,30]
[358445157,1745153439649,-684.0,0.00048,90]
[358445158,1745153439658,-150.0,0.00048,120]
[358445159,1745153439667,-923.0,0.00048,120]
[358445160,1745153439676,-500.0,0.00048,120]
[358445161,1745153439685,-1192.0,0.00048,120]
[358445162,1745153439695,-500.0,0.00048,120]
[358445163,1745153439704,-702.0,0.00048,30]
[358445164,1745153439713,-753.98,0.00048,42]
[358445165,1745153439722,-753.98,0.00048,42]
[358445166,1745153439731,-753.98,0.00048,42]
[358445167,1745153439740,-753.98,0.00048,42]
[358445168,1745153439749,-753.98,0.00048,42]
[358445169,1745153439758,-753.98,0.00048,42]
[358445170,1745153439767,-753.98,0.00048,42]
[358445171,1745153439776,-753.98,0.00048,42]
[358445172,1745153439786,-753.98,0.00048,42]
[358445173,1745153439795,-753.98,0.00048,42]
[358445174,1745153439804,-753.98,0.00048,42]
[358445175,1745153439813,-753.98,0.00048,42]
[358445176,1745153439823,-500.0,0.00048,120]
[358445177,1745153439832,-500.0,0.00048,120]
[358445178,1745153439841,-150.0,0.00048,2]
[358445179,1745153439850,-500.0,0.00048,2]
[358445180,1745153439859,-192.04724618,0.00048,120]
[358445181,1745153439868,-500.0,0.00048,120]
[358445182,1745153439878,-234.12640295,0.00048,60]
[358445183,1745153439887,-760.0,0.00048,30]
[358445184,1745153439896,-770.94,0.00048009,2]
[358445185,1745153439905,-1004.34,0.00048062,2]
[358445186,1745153439915,-200.0,0.000482,74]
[358445187,1745153439927,-200.0,0.00048209,7]
[358445188,1745153439938,-200.0,0.00048209,7]
[358445189,1745153439950,-1000.0,0.00048231,120]
[358445190,1745153439960,-166.66,0.0004824,2]
[358445191,1745153439970,-151.0,0.00048271,2]
[358445192,1745153439979,-207.4,0.00048271,2]
[358445193,1745153439990,-1203.79803728,0.00048271,2]
[358445194,1745153439999,-2000.0,0.000483,2]
[358445195,1745153440009,-155.01950002,0.0004835,2]
[358445196,1745153440019,-684.0,0.00048356,90]
[358445197,1745153440029,-700.0,0.0004837,3]
[358445198,1745153440039,-700.0,0.0004837,3]
[358445199,1745153440048,-700.0,0.0004837,3]
[358445200,1745153440058,-700.0,0.0004837,3]
[358445201,1745153440067,-1274.68224529,0.0004837,3]
[358445202,1745153440077,-259.02,0.000484,2]
[358445203,1745153440086,-193.33079932,0.00048548,120]
[358445204,1745153440096,-923.0,0.00048548,120]
[358445205,1745153440106,-500.0,0.00048548,120]
[358445206,1745153440115,-1192.0,0.00048548,120]
[358445207,1745153440124,-500.0,0.00048548,120]
[358445208,1745153440134,-500.0,0.00048548,120]
[358445209,1745153440143,-499.95808987,0.00048548,120]
[358445210,1745153440154,-500.0,0.00048548,2]
[358445211,1745153440164,-500.0,0.00048548,120]
[358445212,1745153440173,-500.0,0.00048565,30]
[358445213,1745153440183,-247.35557874,0.00048595,30]
[358445214,1745153440192,-684.0,0.0004863,90]
[358445215,1745153440202,-306.15756648,0.0004867,3]
[358445216,1745153440212,-359.28,0.0004867,2]
[358445217,1745153440222,-200.0,0.00048691,7]
[358445218,1745153440232,-600.0,0.00048771,30]
[358445219,1745153440242,-600.0,0.00048803,30]
[358445220,1745153440252,-1228.4,0.00048817,5]
[358445221,1745153440262,-151.0,0.00048819,2]
[358445222,1745153440272,-500.0,0.00048853,30]
[358445223,1745153440282,-684.0,0.00048904,90]
[358445224,1745153440292,-600.0,0.00048922,30]
[358445225,1745153440301,-500.0,0.00048981,30]
[358445226,1745153440311,-500.0,0.00049019,30]
[358445227,1745153440321,-500.0,0.00049053,30]
[358445228,1745153440330,-150.0,0.00049069,120]
[358445229,1745153440340,-263.29788779,0.00049095,2]
[358445230,1745153440350,-500.0,0.00049095,120]
[358445231,1745153440359,-500.0,0.00049095,120]
[358445232,1745153440368,-500.0,0.00049095,120]
[358445233,1745153440378,-500.0,0.00049095,120]
[358445234,1745153440388,-500.0,0.00049095,120]
[358445235,1745153440398,-500.0,0.00049095,120]
[358445236,1745153440408,-500.0,0.00049095,120]
[358445237,1745153440417,-500.0,0.00049095,120]
[358445238,1745153440427,-500.0,0.00049095,120]
[358445239,1745153440436,-500.0,0.00049095,120]
[358445240,1745153440445,-500.0,0.00049095,120]
[358445241,1745153440455,-500.0,0.00049095,120]
[358445242,1745153440465,-500.0,0.00049095,120]
[358445243,1745153440474,-500.0,0.00049095,120]
[358445244,1745153440483,-500.0,0.00049095,120]
[358445245,1745153440492,-500.0,0.00049095,120]
[358445246,1745153440502,-923.0,0.00049096,120]
[358445247,1745153440512,-500.0,0.00049096,120]
[358445248,1745153440523,-1192.0,0.00049096,120]
[358445249,1745153440533,-500.0,0.00049096,120]
[358445250,1745153440542,-500.0,0.00049096,120]
[358445251,1745153440552,-500.0,0.00049096,2]
[358445252,1745153440561,-500.0,0.00049096,120]
[358445253,1745153440571,-190.66575,0.00049106,120]
[358445254,1745153440580,-200.0,0.00049178,7]
[358445255,1745153440590,-684.0,0.00049178,90]
[358445256,1745153440599,-152.0,0.00049195,3]
[358445257,1745153440609,-200.0,0.000492,78]
[358445258,1745153440619,-500.0,0.0004925,30]
[358445259,1745153440628,-600.0,0.00049264,30]
[358445260,1745153440638,-500.0,0.00049299,30]
[358445261,1745153440647,-155.0,0.00049315,2]
[358445262,1745153440657,-500.0,0.00049352,30]
[358445263,1745153440666,-151.0,0.00049367,2]
[358445264,1745153440675,-684.0,0.00049452,120]
[358445265,1745153440685,-600.0,0.00049584,30]
[358445266,1745153440694,-215.0738,0.0004964,2]
[358445267,1745153440704,-923.0,0.00049644,120]
[358445268,1745153440713,-500.0,0.00049644,120]
[358445269,1745153440723,-1192.0,0.00049644,120]
[358445270,1745153440732,-500.0,0.00049644,120]
[358445271,1745153440742,-500.0,0.00049644,120]
[358445272,1745153440751,-500.0,0.00049644,2]
[358445273,1745153440760,-500.0,0.00049644,120]
[358445274,1745153440770,-200.0,0.0004967,7]
[358445275,1745153440779,-600.0,0.00049705,30]
[358445276,1745153440788,-166.66,0.00049748,2]
[358445277,1745153440798,-500.0,0.0004979,30]
[358445278,1745153440807,-210.63844901,0.000498,30]
[358445279,1745153440816,-5000.0,0.00049908,120]
[358445280,1745153440825,-174.0,0.00049909,60]
[358445281,1745153440834,-174.0,0.00049909,60]
[358445282,1745153440844,-174.0,0.00049909,60]
[358445283,1745153440853,-174.0,0.00049909,60]
[358445284,1745153440862,-174.0,0.00049909,60]
[358445285,1745153440871,-174.0,0.00049909,60]
[358445286,1745153440880,-174.0,0.00049909,60]
[358445287,1745153440889,-174.0,0.00049909,60]
[358445288,1745153440899,-174.0,0.00049909,60]
[358445289,1745153440908,-174.0,0.00049909,60]
[358445290,1745153440916,-174.0,0.00049909,60]
[358445291,1745153440925,-174.0,0.00049909,60]
[358445292,1745153440935,-174.0,0.00049909,60]
[358445293,1745153440947,-174.0,0.00049909,60]
[358445294,1745153440958,-174.0,0.00049909,60]
[358445295,1745153440967,-174.0,0.00049909,60]
[358445296,1745153440976,-174.0,0.00049909,60]
[358445297,1745153440986,-153.0,0.00049909,60]
[358445298,1745153440995,-153.0,0.00049909,60]
[358445299,1745153441004,-153.0,0.00049909,60]
[358445300,1745153441014,-153.0,0.00049909,60]
[358445301,1745153441024,-153.0,0.00049909,60]
[358445302,1745153441033,-153.0,0.00049909,60]
[358445303,1745153441042,-153.0,0.00049909,60]
[358445304,1745153441052,-153.0,0.00049909,60]
[358445305,1745153441061,-153.0,0.00049909,60]
[358445306,1745153441071,-174.0,0.00049909,60]
[358445307,1745153441214,-174.0,0.00049909,60]
[358445308,1745153441224,-174.0,0.00049909,60]
[358445309,1745153441234,-174.0,0.00049909,60]
[358445310,1745153441243,-174.0,0.00049909,60]
[358445311,1745153441252,-174.0,0.00049909,60]
[358445312,1745153441262,-174.0,0.00049909,60]
[358445313,1745153441271,-174.0,0.00049909,60]
[358445314,1745153441280,-174.0,0.00049909,60]
[358445315,1745153441289,-174.0,0.00049909,60]
[358445316,1745153441298,-174.0,0.00049909,60]
[358445317,1745153441308,-174.0,0.00049909,60]
[358445318,1745153441317,-174.0,0.00049909,60]
[358445319,1745153441326,-174.0,0.00049909,60]
[358445320,1745153441335,-153.0,0.00049909,60]
[358445321,1745153441344,-153.0,0.00049909,60]
[358445322,1745153441354,-153.0,0.00049909,60]
[358445323,1745153441364,-153.0,0.00049909,60]
[358445324,1745153441374,-153.0,0.00049909,60]
[358445325,1745153441383,-153.0,0.00049909,60]
[358445326,1745153441392,-153.0,0.00049909,60]
[358445327,1745153441402,-153.0,0.00049909,60]
[358445328,1745153441411,-174.0,0.00049909,60]
[358445329,1745153441421,-174.0,0.00049909,60]
[358445330,1745153441431,-174.0,0.00049909,60]
[358445331,1745153441440,-174.0,0.00049909,60]
[358445332,1745153441450,-174.0,0.00049909,60]
[358445333,1745153441459,-174.0,0.00049909,60]
[358445334,1745153441468,-174.0,0.00049909,60]
[358445335,1745153441477,-174.0,0.00049909,60]
[358445336,1745153441486,-174.0,0.00049909,60]
[358445337,1745153441496,-174.0,0.00049909,60]
[358445338,1745153441505,-174.0,0.00049909,60]
[358445339,1745153441515,-174.0,0.00049909,60]
[358445340,1745153441524,-174.0,0.00049909,60]
[358445341,1745153441533,-174.0,0.00049909,60]
[358445342,1745153441543,-153.0,0.00049909,60]
[358445343,1745153441552,-153.0,0.00049909,60]
[358445344,1745153441561,-153.0,0.00049909,60]
[358445345,1745153441571,-153.0,0.00049909,60]
[358445346,1745153441580,-153.0,0.00049909,60]
[358445347,1745153441589,-153.0,0.00049909,60]
[358445348,1745153441598,-153.0,0.00049909,60]
[358445349,1745153441607,-153.0,0.00049909,60]
[358445350,1745153441617,-174.0,0.00049909,60]
[358445351,1745153441626,-174.0,0.00049909,60]
[358445352,1745153441636,-174.0,0.00049909,60]
[358445353,1745153441646,-174.0,0.00049909,60]
[358445354,1745153441656,-174.0,0.00049909,60]
[358445355,1745153441665,-174.0,0.00049909,60]
[358445356,1745153441675,-174.0,0.00049909,60]
[358445357,1745153441685,-174.0,0.00049909,60]
[358445358,1745153441694,-174.0,0.00049909,60]
[358445359,1745153441703,-174.0,0.00049909,60]
[358445360,1745153441712,-174.0,0.00049909,60]
[358445361,1745153441721,-174.0,0.00049909,60]
[358445362,1745153441731,-174.0,0.00049909,60]
[358445363,1745153441740,-174.0,0.00049909,60]
[358445364,1745153441749,-153.0,0.00049909,60]
[358445365,1745153441759,-153.0,0.00049909,60]
[358445366,1745153441768,-153.0,0.00049909,60]
[358445367,1745153441777,-153.0,0.00049909,60]
[358445368,1745153441787,-153.0,0.00049909,60]
[358445369,1745153441796,-153.0,0.00049909,60]
[358445370,1745153441805,-153.0,0.00049909,60]
[358445371,1745153441814,-153.0,0.00049909,60]
[358445372,1745153441824,-174.0,0.00049909,60]
[358445373,1745153441835,-174.0,0.00049909,60]
[358445374,1745153441845,-174.0,0.00049909,60]
[358445375,1745153441855,-174.0,0.00049909,60]
[358445376,1745153441864,-174.0,0.00049909,60]
[358445377,1745153441874,-174.0,0.00049909,60]
[358445378,1745153441884,-174.0,0.00049909,60]
[358445379,1745153441893,-174.0,0.00049909,60]
[358445380,1745153441903,-174.0,0.00049909,60]
[358445381,1745153441912,-174.0,0.00049909,60]
[358445382,1745153441923,-174.0,0.00049909,60]
[358445383,1745153441933,-174.0,0.00049909,60]
[358445384,1745153441947,-174.0,0.00049909,60]
[358445385,1745153441956,-174.0,0.00049909,60]
[358445386,1745153441966,-153.0,0.00049909,60]
[358445387,1745153441976,-153.0,0.00049909,60]
[358445388,1745153441986,-153.0,0.00049909,60]
[358445389,1745153441995,-153.0,0.00049909,60]
[358445390,1745153442007,-153.0,0.00049909,60]
[358445391,1745153442018,-153.0,0.00049909,60]
[358445392,1745153442028,-153.0,0.00049909,60]
[358445393,1745153442037,-153.0,0.00049909,60]
[358445394,1745153442050,-174.0,0.00049909,60]
[358445395,1745153442060,-174.0,0.00049909,60]
[358445396,1745153442070,-174.0,0.00049909,60]
[358445397,1745153442079,-174.0,0.00049909,60]
[358445398,1745153442089,-174.0,0.00049909,60]
[358445399,1745153442099,-174.0,0.00049909,60]
[358445400,1745153442109,-174.0,0.00049909,60]
[358445401,1745153442119,-174.0,0.00049909,60]
[358445402,1745153442128,-174.0,0.00049909,60]
[358445403,1745153442138,-174.0,0.00049909,60]
[358445404,1745153442147,-174.0,0.00049909,60]
[358445405,1745153442157,-174.0,0.00049909,60]
[358445406,1745153442167,-174.0,0.00049909,60]
[358445407,1745153442177,-174.0,0.00049909,60]
[358445408,1745153442187,-153.0,0.00049909,60]
[358445409,1745153442196,-153.0,0.00049909,60]
[358445410,1745153442206,-153.0,0.00049909,60]
[358445411,1745153442215,-153.0,0.00049909,60]
[358445412,1745153442225,-153.0,0.00049909,60]
[358445413,1745153442234,-153.0,0.00049909,60]
[358445414,1745153442244,-153.0,0.00049909,60]
[358445415,1745153442253,-153.0,0.00049909,60]
[358445416,1745153442263,-174.0,0.00049909,60]
[358445417,1745153442272,-174.0,0.00049909,60]
[358445418,1745153442282,-174.0,0.00049909,60]
[358445419,1745153442291,-174.0,0.00049909,60]
[358445420,1745153442301,-174.0,0.00049909,60]
[358445421,1745153442310,-174.0,0.00049909,60]
[358445422,1745153442319,-174.0,0.00049909,60]
[358445423,1745153442329,-174.0,0.00049909,60]
[358445424,1745153442338,-174.0,0.00049909,60]
[358445425,1745153442347,-174.0,0.00049909,60]
[358445426,1745153442356,-153.0,0.00049909,60]
[358445427,1745153442366,-153.0,0.00049909,60]
[358445428,1745153442375,-153.0,0.00049909,60]
[358445429,1745153442384,-153.0,0.00049909,60]
[358445430,1745153442393,-151.0,0.00049915,2]
[358445431,1745153442403,-500.0,0.00049955,30]
[358445432,1745153442412,-499.45647849,0.0004996,10]
[358445433,1745153442421,-500.0,0.0004996,10]
[358445434,1745153442430,-504.0115192,0.0004996,10]
[358445435,1745153442440,-507.53995681,0.0004996,10]
[358445436,1745153442449,-501.61566963,0.0004996,10]
[358445437,1745153442459,-506.31882288,0.0004996,10]
[358445438,1745153442468,-507.4773819,0.0004996,10]
[358445439,1745153442478,-314.80952226,0.0004996,10]
[358445440,1745153442487,-500.0,0.0004996,10]
[358445441,1745153442496,-153.40215114,0.00049973,10]
[358445442,1745153442506,-500.0,0.00049973,10]
[358445443,1745153442516,-500.0,0.00049973,10]
[358445444,1745153442525,-500.0,0.00049973,10]
[358445445,1745153442535,-503.39592314,0.00049973,10]
[358445446,1745153442544,-152.93532957,0.00049973,10]
[358445447,1745153442553,-500.0,0.00049973,10]
[358445448,1745153442563,-500.0,0.00049973,10]
[358445449,1745153442574,-204.49614819,0.00049973,10]
[358445450,1745153442583,-500.0,0.00049973,10]
[358445451,1745153442592,-200.0,0.0005,81]
[358445452,1745153442602,-371.0,0.0005,120]
[358445453,1745153442612,-3318.0,0.0005,5]
[358445454,1745153442621,-168.59593529,0.0005,120]
[358445455,1745153442630,-1102.31475887,0.0005,120]
[358445456,1745153442640,-1715.5201626,0.0005,120]
[358445457,1745153442649,-154.96128447,0.0005,30]
[358445458,1745153442659,-524.12566042,0.0005,120]
[358445459,1745153442668,-300.0,0.0005,120]
[358445460,1745153442677,-356.66890079,0.0005,120]
[358445461,1745153442687,-500.0,0.0005,120]
[358445462,1745153442696,-150.0,0.00050008,120]
[358445463,1745153442706,-500.0,0.00050087,60]
[358445464,1745153442716,-200.0,0.00050166,7]
[358445465,1745153442725,-923.0,0.00050192,120]
[358445466,1745153442735,-500.0,0.00050192,120]
[358445467,1745153442745,-1192.0,0.00050192,120]
[358445468,1745153442754,-500.0,0.00050192,120]
[358445469,1745153442764,-500.0,0.00050192,120]
[358445470,1745153442773,-500.0,0.00050192,2]
[358445471,1745153442782,-500.0,0.00050192,120]
[358445472,1745153442792,-200.0,0.000502,81]
[358445473,1745153442801,-600.0,0.00050283,60]
[358445474,1745153442811,-600.0,0.000504,2]
[358445475,1745153442820,-500.0,0.00050435,60]
[358445476,1745153442830,-150.0,0.00050439,120]
[358445477,1745153442840,-151.0,0.00050463,2]
[358445478,1745153442849,-500.0,0.00050469,60]
[358445479,1745153442859,-684.0,0.00050486,120]
[358445480,1745153442868,-500.0,0.0005053,60]
[358445481,1745153442878,-600.0,0.00050556,60]
[358445482,1745153442887,-500.0,0.00050578,60]
[358445483,1745153442897,-3084.4283,0.00050703,2]
[358445484,1745153442906,-923.0,0.0005074,120]
[358445485,1745153442916,-500.0,0.0005074,120]
[358445486,1745153442925,-1192.0,0.0005074,120]
[358445487,1745153442934,-500.0,0.0005074,120]
[358445488,1745153442946,-500.0,0.0005074,120]
[358445489,1745153442956,-500.0,0.0005074,2]
[358445490,1745153442965,-500.0,0.0005074,120]
[358445491,1745153442974,-777.08,0.000508,7]
[358445492,1745153442984,-600.0,0.00050839,60]
[358445493,1745153442994,-153.66,0.00050873,2]
[358445494,1745153443004,-500.0,0.00050914,60]
[358445495,1745153443013,-359.28,0.00050934,2]
[358445496,1745153443024,-200.0,0.00051,85]
[358445497,1745153443033,-223.0315306,0.00051009,2]
[358445498,1745153443043,-151.0,0.00051011,2]
[358445499,1745153443052,-500.0,0.00051059,60]
[358445500,1745153443062,-2000.0,0.000511,2]
[358445501,1745153443071,-152.0,0.00051153,4]
[358445502,1745153443081,-500.0,0.00051173,60]
[358445503,1745153443090,-200.0,0.000512,85]
[358445504,1745153443100,-151.41963327,0.00051233,120]
[358445505,1745153443111,-500.0,0.00051239,60]
[358445506,1745153443120,-600.0,0.00051278,60]
[358445507,1745153443130,-923.0,0.00051288,120]
[358445508,1745153443140,-500.0,0.00051288,120]
[358445510,1745153443150,-1192.0,0.00051288,120]
[358445511,1745153443160,-500.0,0.00051288,120]
[358445513,1745153443170,-500.0,0.00051288,120]
[358445514,1745153443181,-500.0,0.00051288,2]
[358445515,1745153443191,-500.0,0.00051288,120]
[358445516,1745153443200,-167.0,0.000513,120]
[358445517,1745153443211,-154.65,0.00051307,120]
[358445518,1745153443220,-500.0,0.00051347,60]
[358445519,1745153443230,-500.0,0.0005143,60]
[358445521,1745153443240,-600.0,0.00051476,60]
[358445522,1745153443249,-151.0,0.00051559,2]
[358445523,1745153443258,-600.0,0.00051574,60]
[358445524,1745153443268,-500.0,0.00051654,60]
[358445525,1745153443278,-500.0,0.0005172,60]
[358445526,1745153443287,-500.0,0.00051747,60]
[358445527,1745153443297,-500.0,0.00051767,60]
[358445528,1745153443307,-166.66,0.00051801,2]
[358445529,1745153443316,-151.41963327,0.00051808,120]
[358445530,1745153443326,-150.0,0.00051809,120]
[358445531,1745153443335,-923.0,0.00051836,120]
[358445532,1745153443345,-500.0,0.00051836,120]
[358445533,1745153443354,-1192.0,0.00051836,120]
[358445534,1745153443364,-500.0,0.00051836,120]
[358445535,1745153443374,-174.93148458,0.00051836,120]
[358445536,1745153443384,-500.0,0.00051836,2]
[358445537,1745153443394,-500.0,0.00051836,120]
[358445538,1745153443403,-500.0,0.00051935,60]
[358445539,1745153443413,-200.0,0.00052,89]
[358445540,1745153443422,-371.0,0.00052,120]
[358445541,1745153443433,-624.75190597,0.00052,30]
[358445542,1745153443444,-784.56043824,0.00052,30]
[358445543,1745153443454,-1099.83212439,0.00052053,90]
[358445544,1745153443465,-155.0,0.00052054,2]
[358445545,1745153443474,-500.0,0.00052074,60]
[358445546,1745153443484,-600.0,0.00052077,60]
[358445547,1745153443494,-151.0,0.00052107,2]
[358445548,1745153443504,-200.0,0.000522,89]
[358445549,1745153443514,-600.0,0.00052331,60]
[358445550,1745153443524,-600.0,0.0005237,60]
[358445551,1745153443534,-231.28369723,0.00052378,2]
[358445552,1745153443543,-151.41963329,0.00052384,120]
[358445553,1745153443553,-151.41963327,0.00052384,120]
[358445554,1745153443563,-923.0,0.00052384,120]
[358445555,1745153443572,-500.0,0.00052384,120]
[358445556,1745153443581,-1192.0,0.00052384,120]
[358445557,1745153443590,-500.0,0.00052384,120]
[358445558,1745153443599,-500.0,0.00052384,2]
[358445559,1745153443609,-500.0,0.00052384,120]
[358445560,1745153443619,-500.0,0.00052419,60]
[358445561,1745153443628,-1444.68,0.000525,120]
[358445562,1745153443638,-684.0,0.00052506,120]
[358445563,1745153443647,-600.0,0.00052539,60]
[358445564,1745153443656,-500.0,0.00052542,60]
[358445565,1745153443665,-600.0,0.00052614,60]
[358445566,1745153443675,-500.0,0.0005262,60]
[358445567,1745153443685,-151.0,0.00052655,2]
[358445568,1745153443694,-663.0,0.00052672,7]
[358445569,1745153443703,-600.0,0.00052791,60]
[358445570,1745153443713,-600.0,0.00052818,60]
[358445571,1745153443722,-500.0,0.00052856,60]
[358445572,1745153443732,-600.0,0.00052869,60]
[358445573,1745153443742,-861.1465,0.0005289,2]
[358445574,1745153443751,-500.0,0.000529,2]
[358445575,1745153443761,-151.41963327,0.00052932,120]
[358445578,1745153443893,-923.0,0.00052932,120]
[358445579,1745153443903,-500.0,0.00052932,120]
[358445580,1745153443913,-1192.0,0.00052932,120]
[358445581,1745153443922,-500.0,0.00052932,120]
[358445582,1745153443932,-500.0,0.00052932,2]
[358445583,1745153443944,-500.0,0.00052932,120]
[358445584,1745153443954,-500.0,0.00052973,10]
[358445585,1745153443965,-200.0,0.00053,92]
[358445586,1745153443975,-32109.2793254,0.00053,120]
[358445587,1745153443984,-576.56546297,0.00053,2]
[358445588,1745153443994,-500.0,0.0005301,60]
[358445589,1745153444003,-685.0,0.00053011,120]
[358445590,1745153444014,-152.0,0.00053112,5]
[358445591,1745153444025,-150.0,0.00053179,120]
[358445592,1745153444034,-359.28,0.00053198,2]
[358445593,1745153444044,-200.0,0.000532,93]
[358445594,1745153444055,-151.0,0.00053203,2]
[358445595,1745153444064,-500.0,0.0005322,60]
[358445596,1745153444073,-600.0,0.00053284,60]
[358445597,1745153444084,-500.0,0.00053291,60]
[358445598,1745153444095,-446.93611715,0.0005331,2]
[358445599,1745153444105,-342.25311896,0.00053325,60]
[358445600,1745153444115,-500.0,0.00053361,60]
[358445601,1745153444125,-600.0,0.00053376,60]
[358445602,1745153444134,-600.0,0.00053411,60]
[358445603,1745153444144,-202.01,0.00053412,2]
[358445604,1745153444154,-500.0,0.00053424,30]
[358445605,1745153444164,-600.0,0.00053429,60]
[358445606,1745153444173,-1001.4122184,0.00053452,10]
[358445607,1745153444184,-923.0,0.00053479,120]
[358445608,1745153444194,-500.0,0.00053479,120]
[358445609,1745153444204,-1192.0,0.00053479,120]
[358445610,1745153444213,-299.25885058,0.00053479,120]
[358445611,1745153444223,-500.0,0.00053479,2]
[358445612,1745153444232,-500.0,0.00053479,120]
[358445613,1745153444242,-600.0,0.00053642,60]
[358445614,1745153444251,-600.0,0.00053657,60]
[358445615,1745153444261,-600.0,0.00053665,60]
[358445616,1745153444271,-500.0,0.0005371,60]
[358445617,1745153444280,-239.84119403,0.00053747,2]
[358445618,1745153444290,-188.53843573,0.00053751,2]
[358445619,1745153444300,-772.89952499,0.000538,90]
[358445620,1745153444310,-2000.0,0.000538,2]
[358445621,1745153444319,-166.66,0.00053854,2]
[358445622,1745153444329,-1000.0,0.0005386,120]
[358445623,1745153444339,-153.66,0.00053866,2]
[358445624,1745153444348,-600.0,0.00053866,60]
[358445625,1745153444357,-600.0,0.00053908,60]
[358445626,1745153444368,-500.0,0.00053913,60]
[358445627,1745153444377,-206.82144532,0.00053927,28]
[358445628,1745153444387,-500.0,0.00053972,32]
[358445629,1745153444397,-200.0,0.00054,96]
[358445630,1745153444406,-371.0,0.00054,120]
[358445631,1745153444416,-158.67113959,0.00054,120]
[358445632,1745153444426,-250.0,0.00054,120]
[358445633,1745153444436,-600.0,0.00054008,60]
[358445634,1745153444446,-923.0,0.00054027,120]
[358445635,1745153444456,-500.0,0.00054027,120]
[358445636,1745153444465,-1192.0,0.00054027,120]
[358445637,1745153444474,-562.8967153,0.00054027,2]
[358445638,1745153444483,-500.0,0.00054027,120]
[358445639,1745153444493,-500.0,0.00054062,60]
[358445640,1745153444503,-600.0,0.0005408,60]
[358445641,1745153444512,-500.0,0.0005412,60]
[358445642,1745153444522,-200.0,0.000542,97]
[358445643,1745153444531,-600.0,0.00054201,60]
[358445644,1745153444540,-207.4,0.00054247,2]
[358445645,1745153444549,-295.53046572,0.00054302,2]
[358445646,1745153444558,-796.32,0.00054324,30]
[358445647,1745153444568,-530.11319029,0.00054324,30]
[358445648,1745153444711,-375.66680971,0.00054324,30]
[358445649,1745153444721,-714.31017427,0.00054324,30]
[358445650,1745153444776,-82.00982573,0.00054324,30]
[358445651,1745153444785,-461.20441451,0.00054324,30]
[358445652,1745153444796,-335.11558549,0.00054324,30]
[358445653,1745153444805,-452.89,0.00054324,30]